[Event "African Games Rapid Open 2019"]
[Site "Casablanca"]
[Date "2019.08.26"]
[Round "5.9"]
[White "Mphungu, Gerrard"]
[Black "Tissir, Mohamed"]
[Result "1-0"]
[ECO "A40"]
[WhiteElo "2107"]
[BlackElo "2379"]
[Annotator "NA"]
[PlyCount "203"]
[EventDate "2019.08.26"]
[EventType "team-tourn"]
[EventCountry "MAR"]
[SourceTitle "playchess.com"]
[Source "ChessBase"]
[SourceQuality "1"]
[TimeControl "900+10"]

1. d4 {[%emt 0:00:00]} e6 {[%emt 0:00:00]} 2. e4 {[%emt 0:00:03]} c5 {[%emt 0:00:00]} 3. d5 {[%emt 0:02:03]} exd5 {[%emt 0:00:01]} 4. exd5 {[%emt 0:00:01]} d6 {[%emt 0:00:00]} 5. c4 {[%emt 0:00:01]} Nf6 {[%emt 0:00:52]} 6. Nf3 {[%emt 0:00:09]} Be7 {[%emt 0:00:01]} 7. Be2 {[%emt 0:00:03]} O-O {[%emt 0:00:01]} 8. Nc3 {[%emt 0:00:01]} Bf5 {[%emt 0:00:04]} 9. O-O {[%emt 0:00:09]} Re8 {[%emt 0:00:14]} 10. h3 {[%emt 0:00:12]} Ne4 {[%emt 0:00:07]} 11. Nxe4 {[%emt 0:00:26]} Bxe4 {[%emt 0:00:02]} 12. Bd3 {[%emt 0:00:04]} Bf6 {[%emt 0:00:11]} 13. Bxe4 {[%emt 0:00:30]} Rxe4 {[%emt 0:00:01]} 14. Qc2 {[%emt 0:00:14]} Qe7 {[%emt 0:00:09]} 15. Bd2 {[%emt 0:00:37]} Nd7 {[%emt 0:00:14]} 16. Rae1 {[%emt 0:00:47]} Re8 {[%emt 0:00:09]} 17. Rxe4 {[%emt 0:03:17]} Qxe4 {[%emt 0:00:02]} 18. Qa4 {[%emt 0:00:11]} Rd8 {[%emt 0:01:03]} 19. Re1 {[%emt 0:00:28]} Qf5 {[%emt 0:00:48]} 20. g4 {[%emt 0:01:55]} Qxf3 {[%emt 0:01:07]} 21. Re3 {[%emt 0:00:09]} Ne5 {[%emt 0:01:26]} 22. Rxf3 {[%emt 0:00:02]} Nxf3+ {[%emt 0:00:03]} 23. Kg2 {[%emt 0:00:05]} Nxd2 {[%emt 0:00:03]} 24. Qc2 {[%emt 0:00:05]} Bg5 {[%emt 0:02:28]} 25. h4 {[%emt 0:02:55]} Bf4 {[%emt 0:00:00]} 26. Qf5 {[%emt 0:00:14]} g5 {[%emt 0:00:01]} 27. hxg5 {[%emt 0:00:17]} Be5 {[%emt 0:00:04]} 28. f4 {[%emt 0:00:11]} Nxc4 {[%emt 0:00:40]} 29. Kh3 {[%emt 0:01:04]} Bd4 {[%emt 0:00:07]} 30. b3 {[%emt 0:00:31]} Ne3 {[%emt 0:00:30]} 31. Qe4 {[%emt 0:00:10]} Kf8 {[%emt 0:00:00]} 32. Qxh7 {[%emt 0:01:04]} Nxd5 {[%emt 0:01:03]} 33. f5 {[%emt 0:00:24]} Ke7 {[%emt 0:03:18]} 34. f6+ {[%emt 0:00:02]} Nxf6 {[%emt 0:00:04]} 35. gxf6+ {[%emt 0:00:02]} Bxf6 {[%emt 0:00:01]} 36. Qe4+ {[%emt 0:00:04]} Be5 {[%emt 0:00:07]} 37. Qxb7+ {[%emt 0:00:03]} Rd7 {[%emt 0:00:07]} 38. Qd5 {[%emt 0:00:02]} f6 {[%emt 0:00:13]} 39. Kg2 {[%emt 0:00:02]} Kf8 {[%emt 0:00:41]} 40. Kf3 {[%emt 0:00:04]} Re7 {[%emt 0:00:16]} 41. Qe4 {[%emt 0:01:03]} Kg7 {[%emt 0:00:13]} 42. Qf5 {[%emt 0:00:12]} Bd4 {[%emt 0:00:12]} 43. Qd5 {[%emt 0:00:25]} Be5 {[%emt 0:00:33]} 44. Qe4 {[%emt 0:00:21]} Kf8 {[%emt 0:01:20]} 45. a4 {[%emt 0:00:07]} Kg7 {[%emt 0:00:01]} 46. a5 {[%emt 0:00:02]} Rd7 {[%emt 0:00:26]} 47. Qd5 {[%emt 0:00:13]} Re7 {[%emt 0:00:04]} 48. a6 {[%emt 0:00:03]} Kf8 {[%emt 0:00:21]} 49. Qa8+ {[%emt 0:00:25]} Kg7 {[%emt 0:00:02]} 50. Qd8 {[%emt 0:00:12]} Kf7 {[%emt 0:00:06]} 51. Ke4 {[%emt 0:00:07]} Ke6 {[%emt 0:00:52]} 52. Qg8+ {[%emt 0:00:09]} Rf7 {[%emt 0:00:05]} 53. Qc8+ {[%emt 0:00:13]} Rd7 {[%emt 0:00:01]} 54. Qe8+ {[%emt 0:00:10]} Re7 {[%emt 0:00:01]} 55. Qa8 {[%emt 0:00:06]} Bd4 {[%emt 0:03:06]} 56. Qc8+ {[%emt 0:00:08]} Rd7 {[%emt 0:00:07]} 57. Qc6 {[%emt 0:00:10]} Re7 {[%emt 0:00:29]} 58. Qa8 {[%emt 0:00:19]} Rd7 {[%emt 0:00:11]} 59. Qd5+ {[%emt 0:00:04]} Ke7 {[%emt 0:00:00]} 60. Kf5 {[%emt 0:00:01]} Kd8 {[%emt 0:00:05]} 61. Qa8+ {[%emt 0:00:55]} Ke7 {[%emt 0:00:01]} 62. Qe4+ {[%emt 0:00:26]} Be5 {[%emt 0:00:01]} 63. Qd5 {[%emt 0:00:09]} Kd8 {[%emt 0:00:00]} 64. Qa8+ {[%emt 0:00:05]} Ke7 {[%emt 0:00:01]} 65. Qd5 {[%emt 0:00:08]} Kd8 {[%emt 0:00:01]} 66. Kg6 {[%emt 0:00:04]} Ke7 {[%emt 0:00:15]} 67. g5 {[%emt 0:00:48]} fxg5 68. Kxg5 {[%emt 0:00:09]} Kf8 {[%emt 0:00:16]} 69. Qa8+ {[%emt 0:00:06]} Kg7 {[%emt 0:00:06]} 70. Kf5 {[%emt 0:00:09]} Re7 {[%emt 0:00:27]} 71. Ke4 {[%emt 0:00:11]} Kf6 {[%emt 0:00:56]} 72. Qf8+ {[%emt 0:00:08]} Rf7 {[%emt 0:00:02]} 73. Qd8+ {[%emt 0:00:04]} Ke6 {[%emt 0:00:03]} 74. Qc8+ {[%emt 0:00:05]} Rd7 {[%emt 0:00:05]} 75. Qg8+ {[%emt 0:00:02]} Rf7 {[%emt 0:00:02]} 76. Qg4+ {[%emt 0:00:02]} Ke7 {[%emt 0:00:05]} 77. Kd5 {[%emt 0:00:03]} Rg7 {[%emt 0:00:20]} 78. Qe6+ {[%emt 0:00:08]} Kd8 {[%emt 0:00:01]} 79. Qh3 {[%emt 0:00:21]} Kc7 {[%emt 0:00:01]} 80. Qd3 {[%emt 0:00:05]} Kb6 {[%emt 0:00:12]} 81. Qc4 {[%emt 0:00:37]} Rg3 {[%emt 0:00:08]} 82. Qa4 {[%emt 0:00:06]} Rd3+ {[%emt 0:00:01]} 83. Ke6 {[%emt 0:00:02]} Rd4 {[%emt 0:00:09]} 84. Qa3 {[%emt 0:00:09]} Bf4 {[%emt 0:00:59]} 85. Kd7 {[%emt 0:00:08]} Rb4 {[%emt 0:00:01]} 86. Qa2 {[%emt 0:00:08]} Be5 {[%emt 0:00:13]} 87. Qa3 {[%emt 0:00:37]} Bf4 {[%emt 0:00:08]} 88. Qa2 {[%emt 0:00:19]} Be5 {[%emt 0:00:12]} 89. Ke6 {[%emt 0:00:06]} Rb5 {[%emt 0:00:11]} 90. Kd5 {[%emt 0:00:16]} Ra5 {[%emt 0:00:14]} 91. Qg2 {[%emt 0:00:09]} Rxa6 {[%emt 0:00:02]} 92. Qg8 {[%emt 0:00:04]} Ka5 {[%emt 0:00:22]} 93. Qb8 {[%emt 0:00:07]} Bf4 {[%emt 0:00:09]} 94. Qb7 {[%emt 0:00:08]} Be5 {[%emt 0:00:05]} 95. Kc4 {[%emt 0:00:13]} d5+ {[%emt 0:00:06]} 96. Kxd5 {[%emt 0:00:05]} Bd4 {[%emt 0:00:20]} 97. Kc4 {[%emt 0:00:01]} Rb6 98. Qxa7+ {[%emt 0:00:02]} Ra6 {[%emt 0:00:09]} 99. Qd7 {[%emt 0:00:05]} Kb6 {[%emt 0:00:05]} 100. b4 {[%emt 0:00:08]} cxb4 {[%emt 0:00:26]} 101. Qxd4+ {[%emt 0:00:05]} Kc7 {[%emt 0:00:08]} 102. Kxb4 {[%emt 0:00:08]} 1-0

[Event "African Games Rapid Open 2019"]
[Site "Casablanca"]
[Date "2019.08.26"]
[Round "5.10"]
[White "Adu, Oladapo"]
[Black "Eichab, Charles"]
[Result "1-0"]
[ECO "B01"]
[WhiteElo "2273"]
[BlackElo "2016"]
[Annotator "NA"]
[PlyCount "151"]
[EventDate "2019.08.26"]
[EventType "team-tourn"]
[EventCountry "MAR"]
[SourceTitle "playchess.com"]
[Source "ChessBase"]
[SourceQuality "1"]
[TimeControl "900+10"]

1. e4 {[%emt 0:00:00]} d5 {[%emt 0:00:06]} 2. exd5 {[%emt 0:00:00]} Qxd5 {[%emt 0:00:01]} 3. Nc3 {[%emt 0:00:01]} Qd6 {[%emt 0:00:01]} 4. d4 {[%emt 0:00:03]} Nf6 {[%emt 0:00:06]} 5. Nf3 {[%emt 0:00:32]} Bg4 {[%emt 0:00:20]} 6. Be2 {[%emt 0:00:02]} c6 {[%emt 0:01:06]} 7. Bg5 {[%emt 0:00:29]} Nbd7 {[%emt 0:00:11]} 8. Qd2 {[%emt 0:00:01]} e6 {[%emt 0:00:06]} 9. O-O-O {[%emt 0:00:23]} Qc7 {[%emt 0:00:51]} 10. h3 {[%emt 0:00:11]} Bxf3 {[%emt 0:00:17]} 11. Bxf3 {[%emt 0:00:01]} Bb4 {[%emt 0:00:03]} 12. a3 {[%emt 0:00:15]} Bd6 {[%emt 0:00:48]} 13. Rhe1 {[%emt 0:00:11]} O-O-O {[%emt 0:00:58]} 14. Kb1 {[%emt 0:00:22]} h6 {[%emt 0:00:21]} 15. Be3 {[%emt 0:00:01]} Kb8 {[%emt 0:00:20]} 16. Qe2 {[%emt 0:01:10]} Nb6 {[%emt 0:00:46]} 17. Bc1 {[%emt 0:00:21]} Nbd5 {[%emt 0:00:42]} 18. Na2 {[%emt 0:00:15]} e5 {[%emt 0:02:07]} 19. c4 {[%emt 0:00:33]} Nf4 {[%emt 0:00:22]} 20. Bxf4 {[%emt 0:00:44]} exf4 {[%emt 0:00:01]} 21. Nc3 {[%emt 0:00:09]} Rhe8 {[%emt 0:00:23]} 22. Qf1 {[%emt 0:00:23]} Qa5 {[%emt 0:00:23]} 23. Rxe8 {[%emt 0:00:21]} Rxe8 {[%emt 0:00:06]} 24. Qd3 {[%emt 0:00:12]} Qc7 {[%emt 0:02:35]} 25. c5 {[%emt 0:01:29]} Bf8 {[%emt 0:00:12]} 26. Qf5 {[%emt 0:00:19]} Ng8 {[%emt 0:01:37]} 27. Ne2 {[%emt 0:00:25]} g5 {[%emt 0:00:20]} 28. Bh5 {[%emt 0:00:52]} Re7 {[%emt 0:00:40]} 29. Qh7 {[%emt 0:00:20]} Nf6 {[%emt 0:00:32]} 30. Qh8 {[%emt 0:00:09]} Nd7 {[%emt 0:00:27]} 31. Bg4 {[%emt 0:00:46]} Qd8 {[%emt 0:00:48]} 32. Nc3 {[%emt 0:00:08]} Re8 {[%emt 0:00:23]} 33. Qh7 {[%emt 0:00:31]} Nf6 {[%emt 0:00:04]} 34. Qxf7 {[%emt 0:00:19]} Nxg4 {[%emt 0:00:18]} 35. hxg4 {[%emt 0:00:01]} Re7 {[%emt 0:00:10]} 36. Qc4 {[%emt 0:00:15]} Bg7 {[%emt 0:00:14]} 37. f3 {[%emt 0:00:24]} Rd7 {[%emt 0:00:11]} 38. Ne2 {[%emt 0:00:31]} Qe8 {[%emt 0:00:03]} 39. Kc2 {[%emt 0:00:14]} Qe3 {[%emt 0:00:07]} 40. Rd2 {[%emt 0:00:16]} Kc7 {[%emt 0:00:02]} 41. Qd3 {[%emt 0:00:13]} Re7 {[%emt 0:00:23]} 42. Qc4 {[%emt 0:00:28]} Rd7 {[%emt 0:00:07]} 43. Qd3 {[%emt 0:00:40]} Re7 {[%emt 0:00:02]} 44. Qxe3 Rxe3 {[%emt 0:00:12]} 45. Nc3 {[%emt 0:00:09]} Re8 {[%emt 0:00:31]} 46. d5 {[%emt 0:00:10]} Bxc3 {[%emt 0:00:15]} 47. d6+ {[%emt 0:00:01]} Kd7 {[%emt 0:00:10]} 48. Kxc3 {[%emt 0:00:02]} Re5 {[%emt 0:00:11]} 49. b4 {[%emt 0:00:06]} b6 {[%emt 0:00:02]} 50. Kc4 {[%emt 0:00:10]} Re3 {[%emt 0:00:04]} 51. a4 {[%emt 0:00:07]} Re1 {[%emt 0:00:28]} 52. Kd4 {[%emt 0:00:10]} Rb1 {[%emt 0:00:07]} 53. Kc3 {[%emt 0:00:12]} Rc1+ {[%emt 0:00:42]} 54. Kb2 {[%emt 0:00:02]} Re1 {[%emt 0:00:03]} 55. a5 {[%emt 0:00:19]} Re5 {[%emt 0:01:10]} 56. axb6 {[%emt 0:00:31]} axb6 {[%emt 0:00:02]} 57. Rc2 {[%emt 0:00:01]} Re3 {[%emt 0:00:26]} 58. Ka2 {[%emt 0:01:13]} Rd3 {[%emt 0:00:15]} 59. Re2 {[%emt 0:00:14]} Re3 {[%emt 0:00:01]} 60. Rd2 {[%emt 0:00:09]} Re5 {[%emt 0:00:03]} 61. Rc2 {[%emt 0:00:08]} Ke6 {[%emt 0:00:30]} 62. Kb3 {[%emt 0:00:08]} Kd7 {[%emt 0:00:15]} 63. Ka4 {[%emt 0:00:07]} bxc5 64. bxc5 {[%emt 0:00:02]} Rd5 {[%emt 0:00:18]} 65. Kb4 {[%emt 0:00:03]} Rd4+ {[%emt 0:00:04]} 66. Kc3 {[%emt 0:00:02]} Rd5 {[%emt 0:00:01]} 67. Kc4 {[%emt 0:00:02]} Rd1 {[%emt 0:00:03]} 68. Rb2 {[%emt 0:00:11]} Rc1+ {[%emt 0:00:03]} 69. Kd4 {[%emt 0:00:02]} Rd1+ {[%emt 0:00:02]} 70. Ke4 {[%emt 0:00:03]} Rd5 {[%emt 0:00:06]} 71. Rb7+ {[%emt 0:01:11]} Kc8 {[%emt 0:00:01]} 72. Rc7+ {[%emt 0:00:02]} Kd8 {[%emt 0:00:59]} 73. Rxc6 {[%emt 0:00:02]} Rd2 {[%emt 0:00:11]} 74. Rc7 {[%emt 0:00:04]} Rc2 {[%emt 0:00:07]} 75. Kd5 {[%emt 0:00:02]} Rc3 76. Kd4 1-0

[Event "African Games Rapid Open 2019"]
[Site "Casablanca"]
[Date "2019.08.26"]
[Round "5.11"]
[White "Osunfuyi, Abimbola"]
[Black "Sang, Ricky"]
[Result "1-0"]
[ECO "A36"]
[WhiteElo "2235"]
[BlackElo "1971"]
[Annotator "NA"]
[PlyCount "96"]
[EventDate "2019.08.26"]
[EventType "team-tourn"]
[EventCountry "MAR"]
[SourceTitle "playchess.com"]
[Source "ChessBase"]
[SourceQuality "1"]
[TimeControl "900+10"]

1. c4 {[%emt 0:00:00]} c5 {[%emt 0:00:00]} 2. g3 {[%emt 0:00:00]} Nc6 {[%emt 0:00:00]} 3. Bg2 {[%emt 0:00:00]} g6 {[%emt 0:00:00]} 4. Nc3 {[%emt 0:00:10]} Bg7 {[%emt 0:00:03]} 5. a3 {[%emt 0:00:04]} Nf6 {[%emt 0:00:16]} 6. Rb1 {[%emt 0:00:06]} O-O {[%emt 0:00:39]} 7. d3 {[%emt 0:00:05]} b6 {[%emt 0:01:08]} 8. b4 {[%emt 0:00:08]} cxb4 {[%emt 0:00:04]} 9. axb4 {[%emt 0:00:02]} Bb7 {[%emt 0:00:14]} 10. Bd2 {[%emt 0:00:04]} Qc8 {[%emt 0:00:14]} 11. e4 {[%emt 0:04:09]} d6 {[%emt 0:00:43]} 12. h3 {[%emt 0:00:33]} Nd7 {[%emt 0:00:12]} 13. Nd5 {[%emt 0:00:05]} e6 {[%emt 0:00:30]} 14. Nf4 {[%emt 0:00:11]} Nde5 {[%emt 0:00:10]} 15. h4 {[%emt 0:00:18]} Nd4 {[%emt 0:01:08]} 16. Be3 {[%emt 0:00:41]} Ndc6 {[%emt 0:00:35]} 17. Nge2 {[%emt 0:00:17]} Ng4 {[%emt 0:00:21]} 18. Bd2 {[%emt 0:00:20]} h5 {[%emt 0:00:14]} 19. f3 {[%emt 0:00:58]} Nge5 {[%emt 0:01:06]} 20. Qb3 {[%emt 0:00:41]} Rd8 {[%emt 0:02:09]} 21. d4 {[%emt 0:02:15]} Nd7 {[%emt 0:01:03]} 22. d5 {[%emt 0:00:07]} exd5 {[%emt 0:00:17]} 23. Nxd5 {[%emt 0:00:09]} Re8 {[%emt 0:00:26]} 24. Rc1 {[%emt 0:01:02]} Nce5 {[%emt 0:00:11]} 25. Bh3 {[%emt 0:00:28]} Qd8 {[%emt 0:00:55]} 26. O-O {[%emt 0:00:32]} Ba6 {[%emt 0:01:48]} 27. Bg5 {[%emt 0:00:17]} f6 {[%emt 0:00:43]} 28. Be3 {[%emt 0:00:25]} Rc8 {[%emt 0:00:39]} 29. b5 {[%emt 0:00:25]} Bb7 {[%emt 0:00:16]} 30. c5 {[%emt 0:00:45]} Nxc5 {[%emt 0:00:53]} 31. Bxc5 {[%emt 0:00:11]} Rxc5 {[%emt 0:00:29]} 32. Rxc5 {[%emt 0:00:09]} dxc5 {[%emt 0:00:18]} 33. Nxf6+ {[%emt 0:00:37]} Kh8 {[%emt 0:00:10]} 34. Nxe8 {[%emt 0:00:03]} Qxe8 {[%emt 0:00:02]} 35. f4 {[%emt 0:00:42]} Ng4 {[%emt 0:00:19]} 36. e5 {[%emt 0:00:18]} Qf8 {[%emt 0:01:16]} 37. Bxg4 {[%emt 0:00:16]} hxg4 {[%emt 0:00:02]} 38. Qe6 {[%emt 0:00:13]} Bf3 {[%emt 0:00:16]} 39. Nc3 {[%emt 0:00:12]} Qd8 {[%emt 0:00:41]} 40. Rxf3 gxf3 {[%emt 0:00:48]} 41. Qd5 {[%emt 0:01:04]} Qf8 {[%emt 0:00:13]} 42. Kf2 {[%emt 0:00:44]} Qf5 {[%emt 0:00:02]} 43. Qe4 {[%emt 0:00:10]} Qe6 {[%emt 0:00:06]} 44. Nd5 {[%emt 0:00:08]} Qh3 {[%emt 0:00:05]} 45. Qxf3 {[%emt 0:00:05]} Qf5 {[%emt 0:00:07]} 46. Ne3 {[%emt 0:00:20]} Qd3 {[%emt 0:00:05]} 47. h5 {[%emt 0:00:38]} c4 {[%emt 0:00:16]} 48. hxg6 {[%emt 0:00:11]} c3 1-0

[Event "African Games Rapid Open 2019"]
[Site "Casablanca"]
[Date "2019.08.26"]
[Round "5.12"]
[White "Elarabi, Abobker Mohamed"]
[Black "Kamara, Ansumana"]
[Result "1-0"]
[ECO "D79"]
[WhiteElo "2326"]
[BlackElo "1928"]
[Annotator "NA"]
[PlyCount "92"]
[EventDate "2019.08.26"]
[EventType "team-tourn"]
[EventCountry "MAR"]
[SourceTitle "playchess.com"]
[Source "ChessBase"]
[SourceQuality "1"]
[TimeControl "900+10"]

1. d4 {[%emt 0:00:00]} Nf6 {[%emt 0:00:00]} 2. Nf3 {[%emt 0:00:00]} g6 {[%emt 0:00:00]} 3. c4 {[%emt 0:00:00]} Bg7 {[%emt 0:00:00]} 4. g3 {[%emt 0:00:00]} c6 {[%emt 0:00:05]} 5. Bg2 {[%emt 0:00:09]} d5 {[%emt 0:00:10]} 6. O-O {[%emt 0:00:44]} O-O {[%emt 0:00:04]} 7. cxd5 {[%emt 0:00:09]} cxd5 {[%emt 0:00:02]} 8. Nc3 {[%emt 0:00:02]} Nc6 {[%emt 0:00:05]} 9. Ne5 {[%emt 0:00:30]} Bf5 {[%emt 0:00:59]} 10. Nxc6 {[%emt 0:00:10]} bxc6 {[%emt 0:00:03]} 11. Na4 {[%emt 0:00:23]} h6 {[%emt 0:00:19]} 12. b3 {[%emt 0:00:15]} Nd7 {[%emt 0:00:33]} 13. Ba3 {[%emt 0:00:14]} Re8 {[%emt 0:00:09]} 14. Rc1 {[%emt 0:00:06]} Rc8 {[%emt 0:00:09]} 15. e3 {[%emt 0:01:04]} e5 {[%emt 0:00:19]} 16. Bb2 {[%emt 0:00:30]} e4 {[%emt 0:00:07]} 17. Qd2 {[%emt 0:00:28]} Nb6 {[%emt 0:01:07]} 18. Nc5 {[%emt 0:00:54]} g5 {[%emt 0:00:49]} 19. Rc2 {[%emt 0:00:08]} Qf6 {[%emt 0:00:30]} 20. Rfc1 {[%emt 0:00:20]} Bg4 {[%emt 0:00:19]} 21. a4 {[%emt 0:01:29]} h5 {[%emt 0:00:12]} 22. Qa5 {[%emt 0:03:50]} Re7 {[%emt 0:00:18]} 23. Qa6 {[%emt 0:00:04]} Rcc7 {[%emt 0:00:20]} 24. Ba3 {[%emt 0:00:30]} h4 {[%emt 0:00:06]} 25. Qf1 {[%emt 0:00:46]} Re8 {[%emt 0:01:29]} 26. a5 {[%emt 0:00:41]} Nd7 {[%emt 0:00:50]} 27. Na6 {[%emt 0:01:32]} Rcc8 {[%emt 0:00:02]} 28. Nb4 {[%emt 0:01:04]} Nb8 {[%emt 0:00:10]} 29. Bh3 {[%emt 0:00:27]} Bxh3 {[%emt 0:01:17]} 30. Qxh3 {[%emt 0:00:03]} hxg3 {[%emt 0:00:42]} 31. hxg3 {[%emt 0:00:06]} Qe6 {[%emt 0:00:18]} 32. Qxe6 {[%emt 0:00:34]} fxe6 {[%emt 0:00:58]} 33. Nxc6 {[%emt 0:00:05]} Nxc6 {[%emt 0:00:17]} 34. Rxc6 {[%emt 0:00:02]} Rb8 {[%emt 0:00:02]} 35. Bc5 {[%emt 0:00:45]} Rxb3 {[%emt 0:00:43]} 36. Bxa7 {[%emt 0:00:03]} Ra3 {[%emt 0:00:13]} 37. Bb6 {[%emt 0:00:05]} Ra2 {[%emt 0:00:13]} 38. Rc8 {[%emt 0:00:04]} Kf7 {[%emt 0:01:05]} 39. Rxe8 {[%emt 0:00:36]} Kxe8 {[%emt 0:00:02]} 40. Rc8+ {[%emt 0:00:02]} Kf7 {[%emt 0:00:03]} 41. Ra8 {[%emt 0:00:14]} e5 42. dxe5 {[%emt 0:00:26]} Bxe5 {[%emt 0:00:14]} 43. a6 {[%emt 0:00:07]} Bf6 {[%emt 0:00:23]} 44. a7 {[%emt 0:00:07]} Be7 {[%emt 0:00:07]} 45. Rc8 {[%emt 0:00:07]} Ra6 {[%emt 0:01:11]} 46. Bd4 {[%emt 0:00:12]} g4 {[%emt 0:01:06]} 1-0

[Event "African Games Rapid Open 2019"]
[Site "Casablanca"]
[Date "2019.08.26"]
[Round "5.13"]
[White "Oatlhotse, Providence"]
[Black "Rita, Jeorciley"]
[Result "1-0"]
[ECO "D30"]
[WhiteElo "2252"]
[BlackElo "1920"]
[Annotator "NA"]
[PlyCount "149"]
[EventDate "2019.08.26"]
[EventType "team-tourn"]
[EventCountry "MAR"]
[SourceTitle "playchess.com"]
[Source "ChessBase"]
[SourceQuality "1"]
[TimeControl "900+10"]

1. d4 {[%emt 0:00:00]} e6 {[%emt 0:00:00]} 2. c4 {[%emt 0:00:00]} d5 {[%emt 0:00:00]} 3. Nf3 {[%emt 0:00:00]} Nf6 {[%emt 0:00:00]} 4. Bg5 {[%emt 0:00:00]} Be7 {[%emt 0:00:00]} 5. e3 {[%emt 0:00:00]} c6 {[%emt 0:00:00]} 6. Bd3 {[%emt 0:01:05]} dxc4 {[%emt 0:00:02]} 7. Bxc4 b5 8. Bd3 {[%emt 0:00:08]} Bb7 {[%emt 0:00:11]} 9. O-O {[%emt 0:00:06]} Nbd7 {[%emt 0:00:01]} 10. Nbd2 {[%emt 0:00:10]} O-O {[%emt 0:00:03]} 11. Qe2 {[%emt 0:00:26]} a6 {[%emt 0:00:07]} 12. a4 {[%emt 0:00:01]} Nh5 {[%emt 0:00:12]} 13. Bxe7 {[%emt 0:00:30]} Qxe7 {[%emt 0:00:01]} 14. Ne5 {[%emt 0:00:19]} Nxe5 {[%emt 0:00:27]} 15. Bxh7+ {[%emt 0:00:40]} Kxh7 {[%emt 0:00:11]} 16. Qxh5+ {[%emt 0:00:02]} Kg8 {[%emt 0:00:00]} 17. Qxe5 {[%emt 0:00:04]} Qb4 {[%emt 0:00:20]} 18. Ne4 {[%emt 0:00:18]} Qxb2 {[%emt 0:00:33]} 19. Rfb1 {[%emt 0:00:20]} Qc2 {[%emt 0:00:13]} 20. Rc1 {[%emt 0:00:18]} Qb2 {[%emt 0:00:44]} 21. Rab1 {[%emt 0:00:26]} Qa2 {[%emt 0:00:11]} 22. Nc5 {[%emt 0:00:19]} Bc8 {[%emt 0:00:19]} 23. e4 {[%emt 0:00:26]} f5 {[%emt 0:00:32]} 24. Ra1 {[%emt 0:01:09]} Qd2 {[%emt 0:00:54]} 25. Rd1 {[%emt 0:01:57]} Qh6 {[%emt 0:00:05]} 26. Qd6 {[%emt 0:00:28]} fxe4 {[%emt 0:00:34]} 27. Qxc6 {[%emt 0:00:11]} Ra7 {[%emt 0:00:20]} 28. Qxe4 {[%emt 0:00:50]} Raf7 {[%emt 0:00:20]} 29. f3 {[%emt 0:00:42]} Rf4 {[%emt 0:00:23]} 30. Qe5 {[%emt 0:00:17]} Qg6 {[%emt 0:00:26]} 31. axb5 {[%emt 0:01:40]} axb5 {[%emt 0:02:41]} 32. Kh1 {[%emt 0:03:46]} Qf5 {[%emt 0:02:00]} 33. Qe3 {[%emt 0:01:33]} Qd5 {[%emt 0:00:20]} 34. Rab1 {[%emt 0:01:13]} b4 {[%emt 0:01:04]} 35. Rxb4 {[%emt 0:00:24]} Rxf3 {[%emt 0:00:03]} 36. gxf3 {[%emt 0:00:06]} Rxf3 {[%emt 0:00:02]} 37. Qe4 {[%emt 0:00:01]} Qh5 {[%emt 0:00:54]} 38. Rb8 {[%emt 0:00:22]} Rf8 {[%emt 0:00:31]} 39. Rg1 {[%emt 0:00:41]} e5 {[%emt 0:00:20]} 40. Rxc8 {[%emt 0:00:27]} Rxc8 {[%emt 0:00:06]} 41. Qg4 Qxg4 42. Rxg4 exd4 {[%emt 0:00:18]} 43. Nd3 {[%emt 0:00:14]} Rd8 {[%emt 0:00:14]} 44. Kg2 {[%emt 0:00:05]} Kf7 {[%emt 0:00:02]} 45. Kf3 {[%emt 0:00:02]} Kf6 {[%emt 0:00:04]} 46. Ke4 {[%emt 0:00:13]} g5 {[%emt 0:00:07]} 47. Rg2 {[%emt 0:00:13]} Rd7 {[%emt 0:00:46]} 48. Rf2+ {[%emt 0:00:04]} Kg7 {[%emt 0:00:10]} 49. Rf5 {[%emt 0:00:07]} Kh6 {[%emt 0:00:11]} 50. Ne5 {[%emt 0:00:09]} Ra7 {[%emt 0:00:39]} 51. Kxd4 {[%emt 0:00:11]} Ra2 {[%emt 0:00:29]} 52. Ke4 {[%emt 0:00:18]} Kh5 {[%emt 0:00:18]} 53. Rf8 {[%emt 0:00:23]} g4 {[%emt 0:01:05]} 54. Rh8+ {[%emt 0:00:14]} Kg5 {[%emt 0:00:04]} 55. Rg8+ {[%emt 0:00:06]} Kh4 {[%emt 0:00:03]} 56. Rh8+ {[%emt 0:00:19]} Kg5 {[%emt 0:00:04]} 57. Rg8+ {[%emt 0:00:09]} Kh4 {[%emt 0:00:02]} 58. Nxg4 {[%emt 0:00:11]} Ra4+ {[%emt 0:00:09]} 59. Kf3 {[%emt 0:00:05]} Ra3+ {[%emt 0:00:11]} 60. Ne3 {[%emt 0:00:02]} Ra2 {[%emt 0:00:18]} 61. Rh8+ {[%emt 0:00:18]} Kg5 {[%emt 0:00:04]} 62. h4+ {[%emt 0:00:06]} Kg6 {[%emt 0:00:04]} 63. Ng2 {[%emt 0:00:12]} Ra3+ {[%emt 0:00:26]} 64. Kg4 {[%emt 0:00:03]} Ra4+ {[%emt 0:00:04]} 65. Nf4+ {[%emt 0:00:01]} Kg7 {[%emt 0:00:01]} 66. Rb8 {[%emt 0:00:12]} Kh6 {[%emt 0:00:09]} 67. Rb6+ {[%emt 0:00:04]} Kh7 {[%emt 0:00:03]} 68. Rb5 {[%emt 0:00:08]} Ra1 {[%emt 0:00:11]} 69. h5 {[%emt 0:00:13]} Rg1+ {[%emt 0:00:03]} 70. Kf5 {[%emt 0:00:07]} Kh6 {[%emt 0:00:07]} 71. Rb6+ {[%emt 0:00:04]} Kh7 {[%emt 0:00:02]} 72. Rb8 {[%emt 0:00:29]} Rg7 {[%emt 0:00:22]} 73. Nd5 {[%emt 0:00:08]} Rg1 {[%emt 0:00:22]} 74. Nf6+ {[%emt 0:00:05]} Kh6 75. Rh8+ 1-0

[Event "African Games Rapid Open 2019"]
[Site "Casablanca"]
[Date "2019.08.26"]
[Round "5.14"]
[White "Kouya, Tyeoulou Bernardin F"]
[Black "Mesfin, Leykun"]
[Result "0-1"]
[ECO "A48"]
[WhiteElo "1770"]
[BlackElo "2151"]
[Annotator "NA"]
[PlyCount "52"]
[EventDate "2019.08.26"]
[EventType "team-tourn"]
[EventCountry "MAR"]
[SourceTitle "playchess.com"]
[Source "ChessBase"]
[SourceQuality "1"]
[TimeControl "900+10"]

1. d4 {[%emt 0:00:00]} Nf6 {[%emt 0:00:04]} 2. Nf3 {[%emt 0:00:00]} g6 {[%emt 0:00:15]} 3. Bg5 {[%emt 0:00:00]} Bg7 {[%emt 0:00:01]} 4. Nbd2 {[%emt 0:00:01]} d6 {[%emt 0:00:13]} 5. e3 {[%emt 0:00:02]} h6 {[%emt 0:00:38]} 6. Bh4 {[%emt 0:00:02]} O-O {[%emt 0:00:10]} 7. Bd3 {[%emt 0:00:02]} Nbd7 {[%emt 0:00:07]} 8. c3 {[%emt 0:00:05]} c5 {[%emt 0:00:11]} 9. O-O {[%emt 0:00:12]} b6 {[%emt 0:00:12]} 10. Rc1 {[%emt 0:00:04]} Bb7 {[%emt 0:00:05]} 11. Bb1 {[%emt 0:00:20]} e5 {[%emt 0:01:17]} 12. Nc4 {[%emt 0:00:30]} Qe7 {[%emt 0:00:12]} 13. dxe5 {[%emt 0:00:39]} dxe5 {[%emt 0:00:05]} 14. Bg3 {[%emt 0:01:08]} Rad8 {[%emt 0:00:23]} 15. Qe2 {[%emt 0:00:20]} Ne4 {[%emt 0:02:35]} 16. Bh4 {[%emt 0:01:28]} g5 {[%emt 0:00:09]} 17. Bg3 {[%emt 0:00:09]} f5 {[%emt 0:00:46]} 18. h3 {[%emt 0:03:02]} Nxg3 {[%emt 0:00:10]} 19. fxg3 {[%emt 0:00:02]} e4 {[%emt 0:00:14]} 20. Nfd2 {[%emt 0:00:20]} Ba6 {[%emt 0:00:06]} 21. Qf2 {[%emt 0:00:28]} Ne5 {[%emt 0:00:24]} 22. Nxe5 {[%emt 0:00:48]} Bxe5 {[%emt 0:00:02]} 23. Rfd1 {[%emt 0:00:20]} Qd6 {[%emt 0:00:41]} 24. Nf1 {[%emt 0:00:36]} Qxd1 {[%emt 0:00:10]} 25. Rxd1 {[%emt 0:00:01]} Rxd1 {[%emt 0:00:02]} 26. Bc2 {[%emt 0:00:01]} Rxf1+ {[%emt 0:00:05]} 0-1